[Event "Schack-SM 2023: Sverigemastarklassen"]
[Site "Helsingborg Arena, Mellersta Stenbocksgatan 14, Helsingborg, Sweden"]
[Date "2023.07.01"]
[Round "1.1"]
[White "Hillarp Persson, Tiger"]
[Black "Olsson, William"]
[Result "1/2-1/2"]
[TimeControl "90 minutes for 40 moves + 30 minutes for the rest of the game + 30 seconds per move from move one."]
[WhiteTitle "GM"]
[BlackTitle "FM"]
[WhiteElo "2493"]
[BlackElo "2383"]

1. Nf3 {[%clk 01:30:53]} {[%emt 00:00:06]} d5 {[%clk 01:30:53]} {[%emt
00:00:08]} 2. c4 {[%clk 01:30:51]} {[%emt 00:00:32]} c6 {[%clk 01:31:17]}
{[%emt 00:00:06]} 3. g3 {[%clk 01:29:42]} {[%emt 00:01:39]} Nf6 {[%clk
01:30:50]} {[%emt 00:00:57]} 4. Bg2 {[%clk 01:29:11]} {[%emt 00:01:01]} dxc4
{[%clk 01:30:53]} {[%emt 00:00:28]} 5. O-O {[%clk 01:27:31]} {[%emt 00:02:09]}
Nbd7 {[%clk 01:31:08]} {[%emt 00:00:15]} 6. Qc2 {[%clk 01:26:33]} {[%emt
00:01:27]} Nb6 {[%clk 01:30:53]} {[%emt 00:00:45]} 7. Na3 {[%clk 01:26:54]}
{[%emt 00:00:10]} Be6 {[%clk 01:31:20]} {[%emt 00:00:04]} 8. b3 {[%clk
01:25:31]} {[%emt 00:01:53]} cxb3 {[%clk 01:29:56]} {[%emt 00:01:54]} 9. axb3
{[%clk 01:25:53]} {[%emt 00:00:07]} g6 {[%clk 01:30:21]} {[%emt 00:00:05]} 10.
Nc4 {[%clk 01:25:14]} {[%emt 00:01:09]} Bg7 {[%clk 01:29:35]} {[%emt 00:01:15]}
11. Na5 {[%clk 01:23:31]} {[%emt 00:02:13]} Qc8 {[%clk 01:17:13]} {[%emt
00:12:52]} 12. Ba3 {[%clk 01:16:41]} {[%emt 00:07:20]} Bd5 {[%clk 01:03:48]}
{[%emt 00:13:56]} 13. Rac1 {[%clk 01:06:01]} {[%emt 00:11:09]} Qc7 {[%clk
00:59:45]} {[%emt 00:04:34]} 14. Rfe1 {[%clk 01:03:39]} {[%emt 00:02:52]} Nc8
{[%clk 00:50:08]} {[%emt 00:10:07]} 15. Nc4 {[%clk 01:00:29]} {[%emt 00:03:40]}
O-O {[%clk 00:50:30]} {[%emt 00:00:08]} 16. e4 {[%clk 00:57:16]} {[%emt
00:03:43]} Be6 {[%clk 00:47:04]} {[%emt 00:03:57]} 17. d4 {[%clk 00:56:21]}
{[%emt 00:01:25]} Rd8 {[%clk 00:42:38]} {[%emt 00:04:56]} 18. h3 {[%clk
00:45:42]} {[%emt 00:11:09]} a5 {[%clk 00:37:38]} {[%emt 00:05:31]} 19. Bb2
{[%clk 00:33:41]} {[%emt 00:12:30]} a4 {[%clk 00:33:21]} {[%emt 00:04:48]} 20.
bxa4 {[%clk 00:33:50]} {[%emt 00:00:21]} Bxc4 {[%clk 00:31:12]} {[%emt
00:02:39]} 21. Qxc4 {[%clk 00:34:11]} {[%emt 00:00:08]} Nd6 {[%clk 00:29:47]}
{[%emt 00:01:55]} 22. Qc2 {[%clk 00:34:02]} {[%emt 00:00:39]} Ndxe4 {[%clk
00:29:28]} {[%emt 00:00:49]} 23. Rxe4 {[%clk 00:20:51]} {[%emt 00:13:41]} Nxe4
{[%clk 00:29:54]} {[%emt 00:00:04]} 24. Qxe4 {[%clk 00:21:11]} {[%emt
00:00:09]} Rxa4 {[%clk 00:30:18]} {[%emt 00:00:07]} 25. h4 {[%clk 00:19:15]}
{[%emt 00:02:26]} Bf6 {[%clk 00:27:50]} {[%emt 00:02:58]} 26. Qc2 {[%clk
00:11:39]} {[%emt 00:08:06]} Qa5 {[%clk 00:23:59]} {[%emt 00:04:22]} 27. Bc3
{[%clk 00:11:32]} {[%emt 00:00:36]} Qa7 {[%clk 00:24:05]} {[%emt 00:00:23]} 28.
Bf1 {[%clk 00:10:18]} {[%emt 00:01:44]} Ra3 {[%clk 00:22:07]} {[%emt 00:02:29]}
29. Kg2 {[%clk 00:07:17]} {[%emt 00:03:29]} Qa4 {[%clk 00:19:14]} {[%emt
00:03:24]} 30. Qe4 {[%clk 00:07:17]} {[%emt 00:00:29]} c5 {[%clk 00:17:03]}
{[%emt 00:02:43]} 31. Qxb7 {[%clk 00:07:04]} {[%emt 00:00:43]} cxd4 {[%clk
00:17:22]} {[%emt 00:00:10]} 32. Bd2 {[%clk 00:04:59]} {[%emt 00:02:35]} Qa8
{[%clk 00:13:57]} {[%emt 00:03:55]} 33. Qxa8 {[%clk 00:05:21]} {[%emt
00:00:09]} Raxa8 {[%clk 00:14:20]} {[%emt 00:00:07]} 34. Rc7 {[%clk 00:04:32]}
{[%emt 00:01:18]} Rac8 {[%clk 00:14:09]} {[%emt 00:00:41]} 35. Ra7 {[%clk
00:04:20]} {[%emt 00:00:42]} Kg7 {[%clk 00:14:09]} {[%emt 00:00:30]} 36. g4
{[%clk 00:03:56]} {[%emt 00:00:55]} d3 {[%clk 00:12:39]} {[%emt 00:02:01]} 37.
Ra3 {[%clk 00:02:42]} {[%emt 00:01:43]} e5 {[%clk 00:11:20]} {[%emt 00:01:48]}
38. Bxd3 {[%clk 00:02:45]} {[%emt 00:00:27]} Be7 {[%clk 00:11:13]} {[%emt
00:00:37]} 39. Rb3 {[%clk 00:03:05]} {[%emt 00:00:09]} Rxd3 {[%clk 00:06:58]}
{[%emt 00:04:46]} 40. Rxd3 {[%clk 00:03:25]} {[%emt 00:00:11]} e4 {[%clk
00:07:25]} {[%emt 00:00:03]} 41. Rd7 {[%clk 00:03:27]} {[%emt 00:00:27]} exf3+
{[%clk 00:06:45]} {[%emt 00:01:10]} 42. Kg3 {[%clk 00:02:59]} {[%emt 00:00:58]}
Kf8 {[%clk 00:05:00]} {[%emt 00:02:16]} 43. h5 {[%clk 00:03:01]} {[%emt
00:00:28]} Ke8 {[%clk 00:04:37]} {[%emt 00:00:52]} 44. Rb7 {[%clk 00:02:35]}
{[%emt 00:00:57]} Rd8 {[%clk 00:27:56]} {[%emt 00:07:12]} 45. Be3 {[%clk
00:30:28]} {[%emt 00:02:36]} Rd5 {[%clk 00:24:51]} {[%emt 00:03:36]} 46. hxg6
{[%clk 00:25:07]} {[%emt 00:05:50]} hxg6 {[%clk 00:24:24]} {[%emt 00:00:57]} 47.
Kxf3 {[%clk 00:25:30]} {[%emt 00:00:07]} f6 {[%clk 00:19:37]} {[%emt 00:05:17]}
48. Ke4 {[%clk 00:25:24]} {[%emt 00:00:35]} Re5+ {[%clk 00:19:27]} {[%emt
00:00:41]} 49. Kd3 {[%clk 00:25:43]} {[%emt 00:00:11]} Rd5+ {[%clk 00:18:55]}
{[%emt 00:01:03]} 50. Kc4 {[%clk 00:25:22]} {[%emt 00:00:50]} Rd7 {[%clk
00:18:20]} {[%emt 00:01:06]} 51. Rxd7 {[%clk 00:23:29]} {[%emt 00:02:23]}
1/2-1/2

[Event "Schack-SM 2023: Junior-SM"]
[Site "Helsingborg Arena, Mellersta Stenbocksgatan 14, Helsingborg, Sweden"]
[Date "2023.07.01"]
[Round "1.3"]
[White "Strom-Engdahl, Alexander"]
[Black "Falkevall, Axel"]
[Result "1/2-1/2"]
[TimeControl "90 minutes for 40 moves + 30 minutes for the rest of the game + 30 seconds per move from move one."]
[BlackTitle "FM"]
[WhiteElo "2120"]
[BlackElo "2311"]

1. e4 {[%clk 01:30:51]} {[%emt 00:00:09]} e5 {[%clk 01:30:46]} {[%emt
00:00:14]} 2. Nf3 {[%clk 01:31:12]} {[%emt 00:00:08]} Nc6 {[%clk 01:31:12]}
{[%emt 00:00:05]} 3. Bc4 {[%clk 01:31:36]} {[%emt 00:00:06]} Nf6 {[%clk
01:31:35]} {[%emt 00:00:07]} 4. d3 {[%clk 01:32:00]} {[%emt 00:00:05]} Bc5
{[%clk 01:31:46]} {[%emt 00:00:20]} 5. c3 {[%clk 01:32:05]} {[%emt 00:00:26]}
a6 {[%clk 01:31:56]} {[%emt 00:00:20]} 6. a4 {[%clk 01:32:14]} {[%emt
00:00:21]} d6 {[%clk 01:32:17]} {[%emt 00:00:08]} 7. O-O {[%clk 01:32:36]}
{[%emt 00:00:08]} Ba7 {[%clk 01:32:32]} {[%emt 00:00:15]} 8. Re1 {[%clk
01:31:48]} {[%emt 00:01:18]} O-O {[%clk 01:32:42]} {[%emt 00:00:20]} 9. h3
{[%clk 01:32:13]} h6 {[%clk 01:32:37]} {[%emt 00:00:39]} 10. Nbd2 {[%emt
00:02:17]} Re8 {[%clk 01:32:16]} {[%emt 00:00:13]} 11. b4 {[%clk 01:30:24]} Be6
{[%clk 01:32:07]} {[%emt 00:01:50]} 12. Bxe6 {[%clk 01:30:49]} Rxe6 {[%clk
01:32:30]} {[%emt 00:00:12]} 13. Bb2 {[%emt 00:01:55]} Ne7 {[%clk 01:31:11]} 14.
Nf1 {[%clk 01:29:46]} {[%emt 00:01:58]} Ng6 {[%clk 01:28:18]} {[%emt 00:03:23]}
15. c4 {[%emt 00:06:03]} c6 {[%emt 00:02:10]} 16. a5 {[%emt 00:12:20]} Qd7
{[%emt 00:01:30]} 17. Ng3 {[%clk 01:15:47]} {[%emt 00:12:43]} Rae8 18. Nf5
{[%emt 00:09:58]} d5 {[%emt 00:08:50]} 19. Qb3 {[%clk 01:13:02]} {[%emt
00:00:49]} Bb8 {[%clk 00:50:34]} {[%emt 00:05:03]} 20. g3 {[%clk 01:05:41]}
{[%emt 00:07:51]} Kh7 {[%clk 00:42:32]} {[%emt 00:08:32]} 21. Rad1 {[%clk
01:02:12]} d4 {[%clk 00:42:32]} 22. Rb1 {[%clk 00:57:24]} {[%emt 00:10:58]} Bc7
{[%clk 00:36:58]} 23. Ba3 {[%clk 00:47:43]} {[%emt 00:15:05]} Nf8 {[%clk
00:31:53]} 24. Bc1 {[%clk 00:39:59]} {[%emt 00:13:49]} Ng8 {[%clk 00:29:19]} 25.
Re2 {[%clk 00:35:29]} {[%emt 00:08:03]} g6 {[%clk 00:27:20]} 26. N5h4 {[%clk
00:35:43]} {[%emt 00:02:44]} Rf6 {[%clk 00:25:21]} 27. Kg2 {[%clk 00:34:40]}
{[%emt 00:04:03]} Ne6 {[%clk 00:18:26]} 28. Nh2 {[%clk 00:29:54]} {[%emt
00:12:42]} h5 {[%clk 00:18:08]} 29. N4f3 {[%clk 00:28:14]} {[%emt 00:02:57]}
Kg7 {[%clk 00:17:17]} 30. h4 {[%clk 00:26:49]} {[%emt 00:03:16]} Nf8 {[%clk
00:14:43]} 31. Ra2 {[%clk 00:25:34]} {[%emt 00:04:49]} Nh6 {[%clk 00:13:49]} 32.
b5 {[%clk 00:24:25]} {[%emt 00:03:04]} Ng4 {[%clk 00:12:55]} 33. bxa6 {[%clk
00:21:13]} {[%emt 00:05:05]} bxa6 {[%clk 00:12:52]} 34. c5 {[%clk 00:20:13]}
{[%emt 00:02:04]} Nxh2 {[%clk 00:10:45]} 35. Nxh2 {[%clk 00:20:38]} {[%emt
00:02:42]} Rb8 {[%clk 00:07:59]} 36. Qc2 {[%clk 00:20:47]} {[%emt 00:03:36]}
Rb5 {[%clk 00:08:17]} 37. Bd2 {[%clk 00:15:11]} {[%emt 00:06:17]} Re6 {[%clk
00:05:24]} 38. Nf3 {[%clk 00:10:43]} {[%emt 00:08:22]} f6 {[%clk 00:04:45]} 39.
Qc1 {[%emt 00:02:52]} Kf7 {[%clk 00:03:54]} 40. Bh6 {[%clk 00:07:40]} {[%emt
00:03:40]} Qe8 {[%clk 00:03:15]} 41. Bxf8 {[%clk 00:06:44]} {[%emt 00:02:36]}
Qxf8 {[%clk 00:01:48]} 42. Rxb5 {[%clk 00:05:47]} {[%emt 00:03:24]} cxb5 {[%clk
00:29:44]} 43. Nd2 {[%clk 00:34:59]} {[%emt 00:04:06]} Rc6 {[%clk 00:28:22]} 44.
Nb3 {[%clk 00:34:59]} {[%emt 00:02:08]} Kg7 {[%clk 00:27:40]} 45. Rc2 {[%clk
00:29:51]} {[%emt 00:06:50]} Bd8 {[%clk 00:26:31]} 46. f4 {[%clk 00:19:33]}
{[%emt 00:12:28]} Qf7 {[%clk 00:25:06]} 47. Rb2 {[%clk 00:19:25]} {[%emt
00:02:32]} Bc7 {[%clk 00:19:24]} 48. Qf1 {[%clk 00:13:34]} {[%emt 00:12:33]}
Qd7 {[%emt 00:14:51]} 49. f5 1/2-1/2

[Event "Schack-SM 2023: Mastarklassen"]
[Site "Helsingborg Arena, Mellersta Stenbocksgatan 14, Helsingborg, Sweden"]
[Date "2023.07.01"]
[Round "1.6"]
[White "Nygren, David"]
[Black "Troberg Eskola, Love"]
[Result "1-0"]
[TimeControl "90 minutes for 40 moves + 30 minutes for the rest of games + 30 seconds per move from move one."]
[WhiteElo "2157"]
[BlackElo "2038"]

1. d4 {[%clk 01:30:53]} {[%emt 00:00:05]} d6 {[%clk 01:30:39]} {[%emt
00:00:22]} 2. e4 {[%clk 01:29:17]} {[%emt 00:02:06]} Nf6 {[%clk 01:31:03]}
{[%emt 00:00:06]} 3. Nc3 {[%clk 01:29:44]} {[%emt 00:00:04]} e5 {[%clk
01:31:28]} {[%emt 00:00:06]} 4. f4 {[%clk 01:29:01]} {[%emt 00:01:13]} exd4
{[%clk 01:29:16]} {[%emt 00:02:42]} 5. Qxd4 {[%clk 01:29:21]} {[%emt 00:00:09]}
Nc6 {[%clk 01:29:26]} {[%emt 00:00:21]} 6. Qf2 {[%clk 01:29:09]} {[%emt
00:00:42]} d5 {[%clk 01:20:49]} {[%emt 00:09:07]} 7. exd5 {[%clk 01:25:18]}
{[%emt 00:04:21]} Nxd5 {[%clk 01:18:48]} {[%emt 00:02:31]} 8. Nxd5 {[%clk
01:19:45]} {[%emt 00:06:02]} Qxd5 {[%clk 01:19:09]} {[%emt 00:00:08]} 9. Be3
{[%clk 01:13:03]} {[%emt 00:07:12]} Bf5 {[%clk 01:15:08]} {[%emt 00:04:33]} 10.
Nf3 {[%clk 01:07:30]} {[%emt 00:06:00]} O-O-O {[%clk 01:02:24]} {[%emt
00:13:16]} 11. Be2 {[%clk 01:03:44]} {[%emt 00:04:16]} Re8 {[%clk 00:58:07]}
{[%emt 00:04:48]} 12. Ne5 {[%clk 00:38:12]} {[%emt 00:26:02]} Nb4 {[%clk
00:35:03]} {[%emt 00:23:34]} 13. O-O {[%clk 00:33:17]} {[%emt 00:05:25]} Nxc2
{[%clk 00:32:29]} {[%emt 00:03:04]} 14. Rac1 {[%clk 00:28:01]} {[%emt
00:05:45]} f6 {[%clk 00:20:09]} {[%emt 00:12:51]} 15. Bf3 {[%clk 00:10:28]}
{[%emt 00:18:02]} Qb5 {[%clk 00:11:56]} {[%emt 00:08:43]} 16. Rxc2 {[%clk
00:07:39]} {[%emt 00:03:20]} Bxc2 {[%clk 00:11:48]} {[%emt 00:00:37]} 17. Bg4+
{[%clk 00:06:45]} {[%emt 00:01:24]} f5 {[%clk 00:09:45]} {[%emt 00:02:34]} 18.
Qxc2 {[%clk 00:07:00]} {[%emt 00:00:14]} fxg4 {[%clk 00:09:52]} {[%emt
00:00:23]} 19. Qf5+ {[%clk 00:07:12]} {[%emt 00:00:19]} Kb8 {[%clk 00:07:52]}
{[%emt 00:02:30]} 20. Nd7+ {[%clk 00:07:22]} {[%emt 00:00:19]} Qxd7 {[%clk
00:07:28]} {[%emt 00:00:54]} 21. Qxd7 {[%clk 00:07:48]} {[%emt 00:00:04]} Rxe3
{[%clk 00:07:51]} {[%emt 00:00:07]} 22. Qd8# {[%emt 00:00:06]} 1-0

[Event "Schack-SM 2023: Veteran-SM 50+"]
[Site "Helsingborg Arena, Mellersta Stenbocksgatan 14, Helsingborg, Sweden"]
[Date "2023.07.01"]
[Round "1.5"]
[White "Nurmi, Tommy"]
[Black "Andersson, Bjorn 1961"]
[Result "1/2-1/2"]
[TimeControl "90 minutes for 40 moves + 30 minutes for the rest of games + 30 seconds per move from move one."]
[WhiteElo "2010"]
[BlackElo "1791"]

1. c4 {[%clk 01:30:48]} {[%emt 00:00:12]} c6 {[%clk 01:29:58]} {[%emt
00:01:02]} 2. Nc3 {[%clk 01:30:31]} {[%emt 00:00:47]} Nf6 {[%clk 01:29:06]}
{[%emt 00:01:23]} 3. Nf3 {[%clk 01:29:25]} {[%emt 00:01:36]} e6 {[%clk
01:28:04]} {[%emt 00:01:32]} 4. d4 {[%clk 01:26:21]} {[%emt 00:03:34]} d5
{[%clk 01:28:04]} {[%emt 00:00:30]} 5. e3 {[%clk 01:25:07]} {[%emt 00:01:42]}
Be7 {[%clk 01:27:05]} {[%emt 00:01:30]} 6. a3 {[%clk 01:22:09]} {[%emt
00:03:28]} O-O {[%clk 01:26:24]} {[%emt 00:01:12]} 7. Bd2 {[%clk 01:21:24]}
{[%emt 00:01:14]} b6 {[%clk 01:25:26]} {[%emt 00:01:28]} 8. b4 {[%clk
01:17:54]} {[%emt 00:04:00]} c5 {[%clk 01:19:55]} {[%emt 00:06:02]} 9. bxc5
{[%clk 01:08:56]} {[%emt 00:09:28]} bxc5 {[%clk 01:19:35]} {[%emt 00:00:50]} 10.
dxc5 {[%clk 00:56:47]} {[%emt 00:12:38]} Bxc5 {[%clk 01:16:57]} {[%emt
00:03:08]} 11. cxd5 {[%clk 00:55:35]} {[%emt 00:01:42]} Nxd5 {[%clk 01:16:59]}
{[%emt 00:00:28]} 12. Ne4 {[%clk 00:45:00]} {[%emt 00:11:05]} Be7 {[%clk
01:13:03]} {[%emt 00:04:26]} 13. Be2 {[%clk 00:43:31]} {[%emt 00:02:00]} Bb7
{[%clk 01:11:19]} {[%emt 00:02:13]} 14. Qb1 {[%clk 00:38:14]} {[%emt 00:05:47]}
Nb6 {[%clk 01:07:19]} {[%emt 00:04:28]} 15. Bb4 {[%clk 00:29:57]} {[%emt
00:08:48]} h6 {[%clk 01:01:41]} {[%emt 00:06:09]} 16. O-O {[%clk 00:26:36]}
{[%emt 00:03:50]} Bxb4 {[%clk 00:57:54]} {[%emt 00:04:18]} 17. axb4 {[%clk
00:26:13]} {[%emt 00:00:53]} Bxe4 {[%clk 00:57:06]} {[%emt 00:01:18]} 18. Qxe4
{[%clk 00:26:35]} {[%emt 00:00:08]} Qd5 {[%clk 00:57:17]} {[%emt 00:00:17]} 19.
Qb1 {[%clk 00:23:43]} {[%emt 00:03:24]} N8d7 {[%clk 00:53:29]} {[%emt
00:04:18]} 20. Rd1 {[%clk 00:15:59]} {[%emt 00:08:14]} Qb7 {[%clk 00:53:29]}
{[%emt 00:00:30]} 21. Ba6 {[%clk 00:15:53]} {[%emt 00:00:36]} Qb8 {[%clk
00:49:27]} {[%emt 00:04:33]} 22. e4 {[%clk 00:12:36]} {[%emt 00:03:46]} Ne5
{[%clk 00:36:54]} {[%emt 00:13:03]} 23. Nxe5 {[%clk 00:09:10]} {[%emt
00:03:56]} Qxe5 {[%clk 00:37:11]} {[%emt 00:00:13]} 24. Ra5 {[%clk 00:08:02]}
{[%emt 00:01:38]} Qf6 {[%clk 00:36:23]} {[%emt 00:01:18]} 25. Bf1 {[%clk
00:06:36]} {[%emt 00:01:55]} Qe7 {[%clk 00:34:19]} {[%emt 00:02:36]} 26. Ra1
{[%clk 00:03:06]} {[%emt 00:04:00]} Rfd8 {[%clk 00:33:22]} {[%emt 00:01:26]} 27.
Re1 {[%clk 00:03:07]} {[%emt 00:00:28]} Rd4 {[%clk 00:32:44]} {[%emt 00:01:08]}
28. b5 {[%clk 00:03:24]} {[%emt 00:00:15]} Rad8 {[%clk 00:31:45]} {[%emt
00:01:28]} 29. Qb3 {[%clk 00:03:17]} {[%emt 00:00:38]} R8d7 {[%clk 00:27:38]}
{[%emt 00:04:37]} 30. Rac1 {[%clk 00:03:14]} {[%emt 00:00:33]} Qd6 {[%clk
00:23:48]} {[%emt 00:04:19]} 31. e5 {[%clk 00:02:29]} {[%emt 00:01:16]} Qe7
{[%clk 00:23:01]} {[%emt 00:01:16]} 32. Qe3 {[%clk 00:02:26]} {[%emt 00:00:33]}
Qb4 {[%clk 00:20:46]} {[%emt 00:02:45]} 33. g3 {[%clk 00:01:20]} {[%emt
00:01:36]} Nd5 {[%clk 00:19:17]} {[%emt 00:01:59]} 34. Rc8+ {[%clk 00:01:40]}
{[%emt 00:00:11]} Kh7 {[%clk 00:18:42]} {[%emt 00:01:03]} 35. Qc1 {[%clk
00:01:27]} {[%emt 00:00:45]} Ne7 {[%clk 00:18:11]} {[%emt 00:01:01]} 36. Rc3
{[%clk 00:01:41]} {[%emt 00:00:15]} Rd2 {[%clk 00:16:39]} {[%emt 00:02:03]} 37.
Rc2 {[%clk 00:01:09]} {[%emt 00:01:02]} Ng6 {[%clk 00:14:16]} {[%emt 00:02:52]}
38. Rxd2 {[%clk 00:01:11]} {[%emt 00:00:28]} Rxd2 {[%clk 00:12:51]} {[%emt
00:01:55]} 39. Re3 {[%clk 00:00:55]} {[%emt 00:00:46]} Qd4 {[%clk 00:12:34]}
{[%emt 00:00:45]} 40. Qe1 {[%clk 00:00:51]} {[%emt 00:00:35]} Rd1 {[%clk
00:08:42]} {[%emt 00:04:23]} 41. Qe2 {[%clk 00:00:38]} {[%emt 00:00:44]} Qa1
{[%clk 00:06:51]} {[%emt 00:02:16]} 42. h4 {[%clk 00:19:21]} {[%emt 00:11:51]}
Nxe5 {[%clk 00:28:41]} {[%emt 00:08:41]} 43. Rxe5 {[%clk 00:14:03]} {[%emt
00:05:48]} Rxf1+ {[%clk 00:28:58]} {[%emt 00:00:12]} 44. Qxf1 {[%clk 00:14:17]}
{[%emt 00:00:16]} Qxe5 {[%clk 00:29:13]} {[%emt 00:00:14]} 45. b6 {[%clk
00:13:51]} {[%emt 00:00:58]} axb6 {[%clk 00:28:26]} {[%emt 00:01:17]} 46. Qb1+
{[%clk 00:14:18]} {[%emt 00:00:03]} g6 {[%clk 00:28:23]} {[%emt 00:00:32]} 47.
Qxb6 {[%clk 00:14:44]} {[%emt 00:00:05]} Kg7 {[%clk 00:28:40]} {[%emt
00:00:12]} 48. Qb3 {[%clk 00:14:33]} {[%emt 00:00:42]} h5 {[%clk 00:27:57]}
{[%emt 00:01:11]} 49. Qb6 {[%clk 00:14:32]} {[%emt 00:00:32]} g5 {[%clk
00:27:40]} {[%emt 00:00:47]} 50. hxg5 {[%clk 00:13:50]} {[%emt 00:01:12]} Qxg5
{[%clk 00:27:50]} {[%emt 00:00:20]} 51. Qd4+ {[%clk 00:13:59]} {[%emt
00:00:21]} e5 {[%clk 00:27:45]} {[%emt 00:00:33]} 52. Qe4 {[%clk 00:14:00]}
{[%emt 00:00:31]} h4 {[%clk 00:21:39]} {[%emt 00:06:36]} 53. g4 {[%clk
00:12:57]} {[%emt 00:01:34]} Qf4 {[%clk 00:17:34]} {[%emt 00:04:35]} 54. Qxf4
{[%clk 00:12:36]} {[%emt 00:00:50]} exf4 {[%clk 00:17:49]} {[%emt 00:00:15]} 55.
Kg2 {[%clk 00:13:01]} {[%emt 00:00:05]} Kg6 {[%clk 00:17:01]} {[%emt 00:01:19]}
56. Kh3 {[%clk 00:12:08]} {[%emt 00:01:23]} Kg5 {[%clk 00:08:03]} {[%emt
00:09:27]} 57. f3 {[%clk 00:12:30]} {[%emt 00:00:08]} f6 {[%clk 00:06:33]}
{[%emt 00:02:01]} 58. Kg2 {[%clk 00:12:34]} {[%emt 00:00:25]} f5 {[%clk
00:05:47]} {[%emt 00:01:17]} 59. gxf5 {[%clk 00:12:50]} {[%emt 00:00:13]} Kxf5
{[%clk 00:03:50]} {[%emt 00:02:28]} 60. Kh3 {[%clk 00:12:37]} {[%emt 00:00:43]}
Kg5 {[%clk 00:01:59]} {[%emt 00:02:20]} 61. Kh2 {[%clk 00:13:03]} {[%emt
00:00:04]} Kf5 {[%clk 00:01:17]} {[%emt 00:01:13]} 62. Kh3 {[%clk 00:13:29]}
{[%emt 00:00:02]} 1/2-1/2